bitfinex/quotes_BTCUSD_20260311
["timestamp","ask_amount","ask_price","bid_price","bid_amount"]
[1773248899722,0.07169128,70906.0,70887.0,0.07073436]
[1773248899921,0.07169128,70906.0,70887.0,0.0002]
[1773248900437,0.07169128,70906.0,70883.0,0.07197801]
[1773248900438,0.07169128,70906.0,70878.0,0.0002]
[1773248900581,0.30872321,70905.0,70878.0,0.0002]
[1773248900781,0.0769562,70902.0,70878.0,0.0002]
[1773248900987,0.0769562,70900.0,70878.0,0.0002]
[1773248901758,0.0769562,70898.0,70870.0,0.0002]
[1773248902310,0.30872321,70900.0,70870.0,0.0002]
[1773248902594,0.0769562,70898.0,70870.0,0.0002]
[1773248902994,0.0769562,70896.0,70870.0,0.0002]
[1773248903204,0.0769562,70894.0,70866.0,0.0002]
[1773248903622,0.0769562,70894.0,70865.0,0.0003816]
[1773248904248,0.0769562,70894.0,70865.0,0.0002632]
[1773248905017,0.0769562,70892.0,70865.0,0.0002632]
[1773248905220,0.0769562,70891.0,70865.0,0.0002632]
[1773248905548,0.21098927,70893.0,70865.0,0.0002632]
[1773248905788,0.0769562,70888.0,70865.0,0.0002632]
[1773248905990,0.0769562,70888.0,70865.0,0.07081968]
[1773248906203,0.0783962,70887.0,70866.0,0.07135917]
[1773248906944,0.0769562,70885.0,70865.0,0.0004632]
[1773248907487,0.0769562,70885.0,70863.0,0.00164]
[1773248907675,0.0769562,70885.0,70863.0,0.00034112]
[1773248908226,0.0769562,70885.0,70863.0,0.07170029]
[1773248909054,0.0769562,70883.0,70863.0,0.07170029]
[1773248909258,0.0769562,70881.0,70864.0,0.07135917]
[1773248910486,0.07053778,70884.0,70864.0,0.07135917]
[1773248910681,0.00144,70880.0,70864.0,0.07135917]
[1773248910884,0.00144,70879.0,70864.0,0.07135917]
[1773248911105,0.07054375,70878.0,70864.0,0.07135917]
[1773248911999,0.0769562,70877.0,70863.0,0.00034112]
[1773248913213,0.14750134,70877.0,70863.0,0.00034112]
[1773248915139,0.07054514,70877.0,70860.0,0.07135917]
[1773248915960,0.14750134,70877.0,70860.0,0.07135917]
[1773248916320,0.0769562,70876.0,70860.0,0.07135917]
[1773248916678,0.14750134,70877.0,70860.0,0.07135917]
[1773248917061,0.07054514,70877.0,70860.0,0.07135917]
[1773248917471,0.0769562,70876.0,70860.0,0.07135917]
[1773248917698,0.0769562,70876.0,70859.0,0.0002]
[1773248918734,0.0769562,70876.0,70854.0,0.0002842]
[1773248918888,0.0779562,70876.0,70854.0,0.0002842]
[1773248919090,0.0769562,70876.0,70854.0,0.0002842]
[1773248919288,0.0769562,70874.0,70854.0,0.0002842]
[1773248919534,0.0769562,70872.0,70854.0,0.0002842]
[1773248919900,0.0769562,70872.0,70848.0,0.0002]
[1773248920796,0.14051233,70874.0,70848.0,0.0002]
[1773248920797,0.00144,70871.0,70849.0,0.07258007]
[1773248920994,0.00144,70870.0,70849.0,0.07258007]
[1773248921198,0.21205843,70876.0,70850.0,0.07057163]
[1773248921394,0.21205843,70876.0,70851.0,0.07114007]
[1773248921395,0.00144,70875.0,70851.0,0.07114007]
[1773248921599,0.001,70872.0,70851.0,0.07114007]
[1773248921799,0.002,70872.0,70851.0,0.07114007]
[1773248922044,0.14183582,70875.0,70851.0,0.07114007]
[1773248922253,0.00144,70875.0,70851.0,0.07114007]
[1773248922845,0.0719848,70877.0,70851.0,0.07114007]
[1773248923042,0.07220481,70877.0,70851.0,0.07114007]
[1773248923467,0.07220481,70877.0,70853.0,0.07114007]
[1773248926309,0.07220481,70877.0,70855.0,0.07114007]
[1773248926510,0.07220481,70877.0,70857.0,0.07114007]
[1773248926730,0.07477427,70876.0,70857.0,0.07114007]
[1773248927244,0.07220481,70877.0,70857.0,0.07114007]
[1773248928966,0.07220481,70877.0,70858.0,0.07056366]
[1773248929136,0.07220535,70877.0,70859.0,0.07114007]
[1773248931300,0.07220535,70877.0,70861.0,0.07283109]
[1773248932608,0.07220515,70877.0,70861.0,0.07283109]
[1773248933523,0.07220515,70877.0,70862.0,0.07283109]
[1773248935919,0.28733703,70877.0,70862.0,0.07283109]
[1773248936666,0.14234714,70877.0,70862.0,0.07055886]
[1773248936802,0.00022001,70877.0,70863.0,0.07283109]
[1773248937420,0.07076509,70877.0,70863.0,0.07283109]
[1773248937632,0.07054673,70875.0,70859.0,0.07283109]
[1773248938238,0.07054673,70875.0,70860.0,0.00144]
[1773248938586,0.07054673,70875.0,70861.0,0.07283109]
[1773248938936,0.07054673,70876.0,70861.0,0.07283109]
[1773248940680,0.07444475,70875.0,70858.0,0.00144]
[1773248941014,0.21125908,70876.0,70859.0,0.07283109]
[1773248941216,0.14071235,70875.0,70859.0,0.07283109]
[1773248941373,0.00144,70875.0,70859.0,0.07283109]
[1773248941989,0.00144,70875.0,70860.0,0.07056167]
[1773248942328,0.00144,70875.0,70861.0,0.07283109]
[1773248942890,0.07198682,70875.0,70861.0,0.07283109]
[1773248943533,0.07444475,70874.0,70860.0,0.00144]
[1773248943946,0.07444475,70874.0,70859.0,0.07056261]
[1773248944146,0.07444475,70874.0,70859.0,0.1433937]
[1773248944348,0.14219054,70875.0,70860.0,0.07283109]
[1773248944550,0.00144,70875.0,70860.0,0.07283109]
[1773248944747,0.14075054,70876.0,70860.0,0.07283109]
[1773248944959,0.00144,70882.0,70862.0,0.07283109]
[1773248945196,0.00144,70883.0,70862.0,0.07283109]
[1773248945500,0.00144,70890.0,70864.0,0.07283109]
[1773248945647,0.07053372,70889.0,70864.0,0.07283109]
[1773248945836,0.07197194,70890.0,70864.0,0.07283109]
[1773248946485,0.00144,70890.0,70866.0,0.07283109]
[1773248946691,0.00144,70889.0,70866.0,0.07283109]
[1773248946889,0.00022001,70892.0,70866.0,0.07283109]
[1773248947354,0.00144,70891.0,70866.0,0.07283109]
[1773248947584,0.0002842,70894.0,70871.0,0.07283109]
[1773248947784,0.0002842,70894.0,70873.0,0.07283109]
[1773248948500,0.00036105,70902.0,70875.0,0.07283109]
[1773248950173,0.00036105,70902.0,70881.0,0.07283109]
[1773248950376,0.07088191,70902.0,70882.0,0.07197921]
[1773248950605,0.07444475,70900.0,70882.0,0.07283109]
[1773248950916,0.07444475,70898.0,70882.0,0.07283109]
[1773248951707,0.07444475,70898.0,70881.0,0.00144]
[1773248952422,0.07444475,70898.0,70882.0,0.07053977]
[1773248952656,0.07444475,70898.0,70883.0,0.07283109]
[1773248953022,0.07444475,70897.0,70883.0,0.07283109]
[1773248953818,0.00144,70899.0,70883.0,0.07283109]
[1773248954757,0.00144,70899.0,70885.0,0.07283109]
[1773248955115,0.07588475,70899.0,70885.0,0.07283109]
[1773248955462,0.00022001,70898.0,70885.0,0.07283109]
[1773248956855,0.00022001,70898.0,70886.0,0.07053578]
[1773248957058,0.00022001,70898.0,70886.0,0.14336687]
[1773248958150,0.00022001,70898.0,70886.0,0.07053578]
[1773248958417,0.00022001,70898.0,70887.0,0.07283109]
[1773248959011,0.07444475,70897.0,70872.0,0.07054972]
[1773248959178,0.07426586,70897.0,70874.0,0.07283109]
[1773248960392,0.07254333,70896.0,70874.0,0.07283109]
[1773248960594,0.00144,70897.0,70874.0,0.07283109]
[1773248961021,0.00144,70897.0,70875.0,0.07054673]
[1773248961181,0.00144,70897.0,70876.0,0.07074808]
[1773248961382,0.07218551,70896.0,70876.0,0.07074808]
[1773248961585,0.07200659,70896.0,70876.0,0.07074808]
[1773248962208,0.07200659,70896.0,70877.0,0.00144]
[1773248962409,0.07200659,70896.0,70878.0,0.07074808]
[1773248962845,0.07200659,70896.0,70879.0,0.00144]
[1773248963237,0.07200659,70896.0,70880.0,0.07054176]
[1773248963966,0.07200659,70896.0,70881.0,0.07074808]
[1773248964118,0.07182769,70896.0,70881.0,0.07074808]
[1773248965811,0.07182769,70896.0,70882.0,0.07053977]
[1773248966595,0.11428997,70898.0,70883.0,0.07074808]
[1773248966795,0.00166001,70898.0,70883.0,0.07074808]
[1773248967016,0.07420334,70898.0,70883.0,0.07074808]
[1773248968058,0.07254333,70897.0,70881.0,0.07053977]
[1773248968459,0.07236438,70897.0,70881.0,0.07053977]
[1773248968661,0.07218544,70897.0,70882.0,0.00144]
[1773248968860,0.07218544,70897.0,70882.0,0.00164]
[1773248969065,0.11262996,70896.0,70883.0,0.07218808]
[1773248969391,0.11262996,70895.0,70883.0,0.07218808]
[1773248969707,0.11262996,70896.0,70883.0,0.07218808]
[1773248969922,0.11262996,70897.0,70884.0,0.07053778]
[1773248970141,0.07254333,70895.0,70884.0,0.07053778]
[1773248970338,0.00022001,70898.0,70885.0,0.07074808]
[1773248970591,0.00030391,70902.0,70885.0,0.07218808]
[1773248970784,0.11293387,70902.0,70885.0,0.07218808]
[1773248970983,0.00030391,70902.0,70885.0,0.07074808]
[1773248971187,0.00030391,70902.0,70885.0,0.07218808]
[1773248972153,0.00030391,70902.0,70887.0,0.07074808]
[1773248973830,0.00030391,70902.0,70887.0,0.07174808]
[1773248974238,0.00030391,70902.0,70889.0,0.07074808]
[1773248974935,0.00022001,70906.0,70889.0,0.07074808]
[1773248976280,0.00022001,70906.0,70891.0,0.07074808]
[1773248976619,0.00022001,70906.0,70893.0,0.07074808]
[1773248976858,4.108e-05,70906.0,70893.0,0.07074808]
[1773248977561,0.00022001,70913.0,70894.0,0.07074808]
[1773248977773,0.0001117,70913.0,70894.0,0.07074808]
[1773248977974,0.07254333,70912.0,70890.0,0.0705318]
[1773248978187,0.0001117,70913.0,70890.0,0.0705318]
[1773248978188,0.07051092,70911.0,70890.0,0.0705318]
[1773248978394,0.07051092,70911.0,70891.0,0.00144]
[1773248978395,0.07254333,70911.0,70891.0,0.00144]
[1773248978585,0.0001117,70913.0,70894.0,0.07074808]
[1773248978992,0.00022001,70906.0,70894.0,0.07074808]
[1773248980154,0.00022001,70906.0,70895.0,0.07052683]
[1773248980883,0.00022001,70906.0,70896.0,0.07521085]
[1773248981089,0.00022001,70906.0,70897.0,0.00144]
[1773248981665,0.00022001,70906.0,70898.0,0.07521085]
[1773248982111,0.0001117,70913.0,70898.0,0.07521085]
[1773248982315,0.0001117,70913.0,70900.0,0.07521085]
[1773248983517,0.0001117,70913.0,70900.0,0.001]
[1773248983721,0.0001117,70913.0,70899.0,0.07052285]
[1773248984119,0.00022001,70914.0,70899.0,0.07052285]
[1773248984420,0.00022001,70914.0,70900.0,0.13885953]
[1773248984634,0.00022001,70914.0,70901.0,0.13885953]
[1773248984844,0.00022001,70914.0,70902.0,0.13885953]
[1773248984998,0.00022001,70914.0,70904.0,0.08489458]
[1773248985201,0.00022001,70914.0,70906.0,0.08489458]
[1773248985830,0.00022001,70914.0,70908.0,0.08489458]
[1773248986026,0.00022001,70914.0,70910.0,0.08489458]
[1773248986233,0.00022001,70914.0,70911.0,0.07051092]
[1773248986433,0.00022001,70914.0,70911.0,0.1554055]
[1773248987148,0.00022001,70914.0,70910.0,0.07051092]
[1773248987443,0.0002803,70918.0,70911.0,0.08483801]
[1773248987849,0.0002803,70918.0,70911.0,0.58483801]
[1773248988345,0.0002803,70918.0,70912.0,0.07050992]
[1773248988652,0.0002803,70918.0,70911.0,0.57051001]
[1773248988854,0.0002803,70918.0,70911.0,0.26753272]
[1773248990569,0.0002803,70918.0,70911.0,0.19702271]
[1773248991657,0.18283355,70917.0,70899.0,0.07063396]
[1773248991858,0.18427355,70917.0,70899.0,0.07063396]
[1773248992033,0.00187566,70916.0,70899.0,0.07063396]
[1773248992450,0.18283355,70917.0,70900.0,0.13823336]
[1773248992675,0.00144,70917.0,70902.0,0.08059715]
[1773248993635,0.00244,70917.0,70902.0,0.08059715]
[1773248994055,0.00144,70917.0,70902.0,0.08059715]
[1773248994285,0.00022001,70916.0,70902.0,0.08059715]
[1773248994478,0.00022001,70916.0,70903.0,0.15211876]
[1773248994682,0.00022001,70916.0,70904.0,0.00144]
[1773248995493,0.07072611,70916.0,70899.0,0.0001117]
[1773248995664,0.18283355,70915.0,70899.0,0.0001117]
[1773248996345,0.18283355,70915.0,70897.0,0.00144]
[1773248996659,0.07050793,70914.0,70897.0,0.00144]
[1773248997111,0.07050793,70914.0,70897.0,0.07196429]
[1773248997310,0.07050793,70914.0,70893.0,0.07052806]
[1773248997512,0.07050793,70914.0,70896.0,0.00144]
[1773248998319,0.07150793,70914.0,70896.0,0.00144]
[1773248998537,0.00255164,70915.0,70901.0,0.08137672]
[1773248998906,0.00155164,70915.0,70901.0,0.08137672]
[1773248999161,0.0720586,70915.0,70901.0,0.08137672]
[1773248999335,0.00155164,70915.0,70901.0,0.08137672]
[1773248999756,0.07205911,70915.0,70897.0,0.07052392]
[1773248999940,0.001,70914.0,70897.0,0.07052392]
[1773249000321,0.001,70914.0,70897.0,0.15178802]
[1773249001151,0.07205911,70915.0,70897.0,0.15178802]
[1773249001358,0.07305911,70915.0,70897.0,0.15178853]
[1773249001746,0.07205911,70915.0,70897.0,0.15198853]
[1773249001943,0.07205911,70915.0,70897.0,0.07072443]
[1773249002147,0.07205911,70915.0,70897.0,0.0002]
[1773249002486,0.07205911,70915.0,70897.0,0.07072481]
[1773249002638,0.07205911,70915.0,70897.0,0.0002]
[1773249003034,0.07205911,70915.0,70894.0,0.00144]
[1773249003275,0.0758725,70914.0,70884.0,0.07053748]
[1773249003479,0.0758725,70903.0,70866.0,0.11120742]
[1773249003721,0.605026,70914.0,70861.0,0.0002]
[1773249003722,0.0758725,70889.0,70861.0,0.0002]
[1773249003913,0.0758725,70887.0,70861.0,0.0002]
[1773249004150,0.0758725,70879.0,70861.0,0.0002]
[1773249004304,0.04178909,70900.0,70865.0,0.07575344]
[1773249004488,0.0436276,70898.0,70865.0,0.07575344]
[1773249005025,0.0436276,70898.0,70865.0,0.07586504]
[1773249005238,0.07052484,70897.0,70866.0,0.07055569]
[1773249005390,0.0435149,70896.0,70867.0,0.07575344]
[1773249006839,0.04340264,70894.0,70867.0,0.07575344]
[1773249007041,0.00144,70893.0,70867.0,0.07575344]
[1773249007359,0.04329083,70892.0,70867.0,0.07575344]
[1773249008138,0.07053081,70891.0,70868.0,0.0705537]
[1773249008353,0.04317946,70890.0,70869.0,0.07575344]
[1773249008922,0.07196895,70893.0,70869.0,0.07575344]
[1773249009566,0.04256945,70892.0,70869.0,0.07575344]
[1773249009748,0.07196895,70893.0,70869.0,0.07575344]
[1773249010294,0.002,70903.0,70871.0,0.07575344]
[1773249010448,0.00144,70898.0,70871.0,0.07575344]
[1773249010847,0.00144,70898.0,70880.0,0.07575344]
[1773249011048,0.00144,70898.0,70882.0,0.07575344]
[1773249011498,0.002,70903.0,70882.0,0.07575344]
[1773249011709,0.00144,70901.0,70882.0,0.07575344]
[1773249011871,0.002,70903.0,70882.0,0.07575344]
[1773249012409,0.002,70903.0,70884.0,0.07575344]
[1773249013091,0.07195503,70907.0,70884.0,0.07575344]
[1773249013272,0.001,70889.0,70884.0,0.07575344]
[1773249013474,0.07195547,70907.0,70884.0,0.07575344]
[1773249013694,0.001,70900.0,70884.0,0.07575344]
[1773249014460,0.00022001,70926.0,70886.0,0.07575344]
[1773249014665,0.07050547,70917.0,70888.0,0.07575344]
[1773249014874,0.00144,70915.0,70888.0,0.07560469]
[1773249015073,0.07050501,70917.0,70888.0,0.07560469]
[1773249015275,0.00144,70914.0,70888.0,0.07560469]
[1773249015878,0.00155164,70914.0,70888.0,0.07560469]
[1773249016083,0.00011164,70914.0,70892.0,0.07575344]
[1773249016299,0.00011164,70914.0,70894.0,0.07052783]
[1773249016529,0.00022001,70921.0,70901.0,0.07575344]
[1773249016689,0.00022001,70921.0,70903.0,0.07575344]
[1773249017179,0.00014101,70917.0,70903.0,0.07575344]
[1773249018418,0.00014101,70917.0,70905.0,0.07575344]
[1773249019804,0.00014101,70917.0,70905.0,0.07675344]
[1773249020011,0.00014101,70917.0,70905.0,0.07775344]
[1773249021107,0.00014101,70917.0,70907.0,0.07719098]
[1773249021308,0.00014101,70917.0,70909.0,0.07719098]
[1773249023210,0.00014101,70917.0,70910.0,0.07051191]
[1773249023437,0.00036102,70917.0,70910.0,0.14770289]
[1773249023610,0.00036102,70917.0,70910.0,0.07719098]
[1773249023971,0.00036102,70917.0,70909.0,0.07051201]
[1773249024391,0.00036102,70917.0,70910.0,0.00144]
[1773249025207,0.00046642,70917.0,70910.0,0.00144]
[1773249025540,0.00046642,70917.0,70908.0,0.07051353]
[1773249026707,0.03286903,70915.0,70901.0,0.00011164]
[1773249026932,0.03286903,70915.0,70901.0,0.07063214]
[1773249027135,0.00144,70916.0,70902.0,0.07719098]
[1773249027331,0.0001054,70915.0,70902.0,0.07719098]
[1773249029117,0.0001054,70915.0,70902.0,0.07863098]
[1773249029521,0.0001054,70915.0,70904.0,0.07719098]
[1773249030866,0.0001054,70915.0,70905.0,0.07739098]
[1773249032652,0.0001054,70915.0,70906.0,0.14770687]
[1773249032862,0.0001054,70915.0,70906.0,0.07051589]
[1773249033091,0.0001054,70915.0,70905.0,0.0002]
[1773249033251,0.02945772,70914.0,70905.0,0.0002]
[1773249033638,0.02945772,70914.0,70901.0,0.00011164]
[1773249033639,0.07050893,70913.0,70901.0,0.00011164]
[1773249033958,0.02945772,70912.0,70901.0,0.00011164]
[1773249034102,0.02945772,70912.0,70901.0,0.07063208]
[1773249034498,0.0001054,70913.0,70901.0,0.07063208]
[1773249034694,0.0001054,70913.0,70901.0,0.14782306]
[1773249034970,0.0021054,70913.0,70901.0,0.14782306]
[1773249035173,0.0011054,70913.0,70901.0,0.14782306]
[1773249035371,0.0001054,70913.0,70901.0,0.07063208]
[1773249035600,0.00022001,70917.0,70902.0,0.07719098]
[1773249035797,0.00022001,70917.0,70904.0,0.07719098]
[1773249036001,0.00022001,70917.0,70905.0,0.00144]
[1773249036176,0.00022001,70921.0,70906.0,0.07719098]
[1773249038010,0.00022001,70921.0,70908.0,0.07719098]
[1773249039976,0.00022001,70921.0,70909.0,0.07051291]
[1773249040177,0.00022001,70924.0,70910.0,0.07719098]
[1773249041024,0.00022001,70924.0,70912.0,0.0698982]
[1773249042254,0.00022001,70924.0,70913.0,0.07050893]
[1773249042551,0.00022001,70924.0,70905.0,0.07215589]
[1773249042552,0.02505659,70922.0,70905.0,0.07215589]
[1773249042962,0.02505659,70922.0,70906.0,0.0698982]
[1773249043163,0.00166001,70924.0,70906.0,0.0698982]
[1773249043398,0.02463052,70923.0,70901.0,0.00011164]
[1773249043551,0.02463052,70923.0,70901.0,0.07063234]
[1773249044339,0.0242188,70921.0,70901.0,0.00011164]
[1773249046077,0.0242188,70921.0,70901.0,0.07000984]
[1773249046388,0.17888003,70919.0,70902.0,0.07051987]
[1773249046592,0.02338699,70918.0,70902.0,0.07051987]
[1773249048096,0.02438699,70918.0,70902.0,0.07051987]
[1773249048309,0.07050495,70917.0,70902.0,0.07051987]
[1773249048454,0.00144,70916.0,70902.0,0.07051987]
[1773249049393,0.00166001,70921.0,70903.0,0.0713382]
[1773249050011,0.0218547,70920.0,70903.0,0.0713382]
[1773249050230,0.001,70917.0,70903.0,0.0713382]
[1773249050737,0.00166001,70921.0,70905.0,0.06532895]
[1773249050976,0.00022001,70921.0,70905.0,0.06532895]
[1773249051326,0.00022001,70924.0,70905.0,0.06532895]
[1773249052203,0.00022001,70924.0,70905.0,0.06632895]
[1773249052646,0.00022001,70924.0,70906.0,0.07051589]
[1773249052845,0.00022001,70924.0,70907.0,0.06532895]
[1773249054031,0.00022001,70924.0,70907.0,0.06632895]
[1773249054864,0.00022001,70924.0,70909.0,0.06532895]
[1773249055021,0.00022001,70924.0,70911.0,0.06532895]
[1773249056813,0.00022001,70924.0,70912.0,0.07050992]
[1773249057022,0.00022001,70929.0,70913.0,0.06532895]
[1773249057023,1e-08,70929.0,70913.0,0.06532895]
[1773249057730,0.00022001,70936.0,70913.0,0.06532895]
[1773249058915,0.00022001,70936.0,70915.0,0.06532895]
[1773249059317,0.00022001,70936.0,70917.0,0.06532895]
[1773249060345,0.00022001,70936.0,70919.0,0.06532895]
[1773249060748,0.01780214,70932.0,70914.0,0.07050793]
[1773249060949,0.01780214,70932.0,70920.0,0.07194108]
[1773249061136,0.01780214,70932.0,70920.0,0.07050108]
[1773249062087,0.00022001,70936.0,70921.0,0.06532895]
[1773249062434,1e-08,70933.0,70921.0,0.06532895]
[1773249063035,1e-08,70933.0,70923.0,0.06532895]
[1773249063238,1e-08,70933.0,70924.0,0.00144]
[1773249063443,0.01674648,70932.0,70916.0,0.00144]
[1773249063749,0.01674648,70932.0,70912.0,0.00144]
[1773249063937,0.01674648,70932.0,70913.0,0.00144]
[1773249064183,0.01711873,70932.0,70920.0,0.001]
[1773249064379,0.01711873,70932.0,70913.0,0.00144]
[1773249064633,0.01855873,70932.0,70912.0,0.06532895]
[1773249064792,0.01855873,70932.0,70914.0,0.00144]
[1773249064989,0.01855873,70932.0,70915.0,0.07050694]
[1773249065412,0.01955873,70932.0,70915.0,0.07050694]
[1773249066156,0.01955873,70932.0,70915.0,0.13583589]
[1773249066685,0.01855873,70932.0,70916.0,0.06532895]
[1773249067029,0.00181225,70932.0,70917.0,0.07050495]
[1773249067335,0.0171948,70932.0,70917.0,0.07050495]
[1773249067862,0.0171948,70932.0,70912.0,0.00144]
[1773249067863,0.0654083,70931.0,70912.0,0.00144]
[1773249068042,0.0654083,70931.0,70911.0,0.00144]
[1773249068457,0.0654083,70931.0,70911.0,0.06676895]
[1773249069246,0.0654083,70930.0,70913.0,0.06532895]
[1773249069745,0.00022001,70931.0,70913.0,0.06532895]
[1773249070868,0.06562831,70931.0,70913.0,0.06532895]
[1773249071044,0.06562831,70931.0,70913.0,0.06632895]
[1773249071245,0.00022001,70931.0,70915.0,0.06532895]
[1773249071828,0.00037225,70932.0,70915.0,0.06532895]
[1773249072144,0.00022001,70939.0,70914.0,0.07050793]
[1773249072145,0.0002129,70949.0,70922.0,0.06532895]
[1773249072364,0.00033164,70948.0,70931.0,0.06532895]
[1773249072530,0.00033164,70948.0,70933.0,0.06532895]
[1773249072734,0.00033164,70948.0,70935.0,0.06532895]
[1773249073000,0.00033164,70948.0,70937.0,0.06532895]
[1773249073202,0.00033164,70948.0,70939.0,0.06532895]
[1773249073345,0.00033164,70948.0,70940.0,0.13725104]
[1773249073553,0.00033164,70948.0,70941.0,0.06532895]
[1773249075201,0.00033164,70948.0,70941.0,0.06632895]
[1773249075404,0.00033164,70948.0,70942.0,0.07048011]
[1773249077459,0.00033164,70948.0,70942.0,0.13580906]
[1773249077611,0.1698487,70957.0,70942.0,0.13580906]
[1773249077612,0.00144,70957.0,70942.0,0.13580906]
[1773249078622,0.0668483,70957.0,70942.0,0.13580906]
[1773249080031,0.0654083,70957.0,70942.0,0.13580906]
[1773249080234,0.0668483,70957.0,70942.0,0.13580906]
[1773249081004,0.0668483,70957.0,70942.0,0.07048011]
[1773249082223,0.0668483,70957.0,70941.0,0.07048011]
[1773249082849,0.0668483,70957.0,70942.0,0.06601482]
[1773249084200,0.0678483,70957.0,70943.0,0.07047911]
[1773249084633,0.06706831,70957.0,70943.0,0.07047911]
[1773249085028,0.06706831,70957.0,70944.0,0.06601482]
[1773249085029,0.00022001,70957.0,70944.0,0.06601482]
[1773249086187,0.00022001,70957.0,70946.0,0.06601482]
[1773249086392,0.00022001,70957.0,70947.0,0.00144]
[1773249086591,0.00036094,70957.0,70947.0,0.00144]
[1773249088553,0.00036094,70957.0,70948.0,0.07047415]
[1773249089946,0.00036094,70957.0,70948.0,0.13648897]
[1773249090151,0.00022001,70972.0,70949.0,0.06601482]
[1773249090463,0.0003316,70972.0,70949.0,0.06601482]
[1773249090641,0.0003316,70972.0,70951.0,0.06601482]
[1773249091045,0.0003316,70972.0,70952.0,0.06601482]
[1773249091242,0.0003316,70972.0,70954.0,0.06601482]
[1773249092037,0.06766293,70972.0,70954.0,0.06601482]
[1773249092710,0.06766293,70972.0,70956.0,0.06601482]
[1773249093249,0.06766293,70972.0,70955.0,0.07046719]
[1773249093447,0.06766293,70972.0,70955.0,0.13648201]
[1773249093671,0.06766293,70972.0,70956.0,0.06601482]
[1773249094704,0.06766293,70972.0,70957.0,0.07046521]
[1773249095286,0.06733133,70971.0,70952.0,0.00144]
[1773249095490,0.06733133,70971.0,70949.0,0.00144]
[1773249095840,0.06733133,70971.0,70936.0,0.06601482]
[1773249096040,0.00144,70970.0,70936.0,0.06601482]
[1773249096257,0.06877133,70969.0,70936.0,0.06601482]
[1773249096395,0.07078194,70972.0,70936.0,0.06601482]
[1773249096396,0.00144,70968.0,70936.0,0.06601482]
[1773249096598,0.06733133,70971.0,70938.0,0.07048408]
[1773249096786,0.00144,70967.0,70939.0,0.06601482]
[1773249097713,0.0003316,70972.0,70951.0,0.06601482]
[1773249097916,0.0003316,70972.0,70953.0,0.06601482]
[1773249098633,0.0003316,70972.0,70954.0,0.07046819]
[1773249098847,0.0003316,70972.0,70955.0,0.06601482]
[1773249100714,0.0003316,70972.0,70956.0,0.0704662]
[1773249100715,0.06920834,70971.0,70956.0,0.0704662]
[1773249101089,0.04171693,70970.0,70943.0,0.07047911]
[1773249101222,0.06920834,70969.0,70944.0,0.07047744]
[1773249101424,0.06920834,70959.0,70933.0,0.0002221]
[1773249101648,0.07078196,70972.0,70933.0,0.0002221]
[1773249101649,0.06920834,70957.0,70935.0,0.07048666]
[1773249101846,0.12522998,70970.0,70935.0,0.07048666]
[1773249101847,0.06920834,70955.0,70935.0,0.07048666]
[1773249102016,0.06920834,70953.0,70935.0,0.07048666]
[1773249102868,0.00144,70952.0,70936.0,0.06403055]
[1773249103245,0.00144,70955.0,70936.0,0.06403055]
[1773249103569,0.00144,70956.0,70936.0,0.06403055]
[1773249104163,0.07064834,70956.0,70936.0,0.06403055]
[1773249105173,0.06920834,70956.0,70938.0,0.06403055]
[1773249105357,0.06920834,70956.0,70939.0,0.06547055]
[1773249107190,0.06920834,70956.0,70941.0,0.06403055]
[1773249107433,0.07045596,70967.0,70941.0,0.06403055]
[1773249107602,0.07044977,70973.0,70941.0,0.06403055]
[1773249107603,0.00144,70966.0,70941.0,0.06403055]
[1773249107760,0.06920834,70970.0,70941.0,0.06403055]
[1773249107966,0.07064834,70970.0,70941.0,0.06403055]
[1773249108299,0.06943044,70976.0,70941.0,0.06403055]
[1773249108595,0.07087044,70976.0,70941.0,0.06403055]
[1773249109389,0.06920834,70971.0,70943.0,0.06403055]
[1773249109837,0.06920834,70971.0,70944.0,0.00144]
[1773249110141,0.06920834,70971.0,70944.0,0.06766845]
[1773249111038,0.06920834,70971.0,70944.0,0.06622845]
[1773249111237,0.06920834,70971.0,70946.0,0.06622845]
[1773249111647,0.07044396,70969.0,70947.0,0.07191514]
[1773249111810,0.07044396,70969.0,70948.0,0.06622845]
[1773249112030,0.00144,70968.0,70948.0,0.06622845]
[1773249112245,0.07188396,70968.0,70948.0,0.06622845]
[1773249112847,0.00144,70967.0,70948.0,0.06622845]
[1773249113367,0.0003316,70972.0,70948.0,0.06622845]
[1773249113564,0.07077556,70972.0,70949.0,0.07047315]
[1773249113767,0.0003316,70972.0,70952.0,0.06622845]
[1773249114212,0.0003316,70972.0,70954.0,0.06622845]
[1773249115681,0.0003316,70972.0,70955.0,0.07046719]
[1773249115885,0.0003316,70972.0,70956.0,0.06622845]
[1773249117667,0.0003316,70972.0,70958.0,0.06622845]
[1773249118116,0.0003316,70972.0,70959.0,0.00144]
[1773249118441,0.0003316,70972.0,70960.0,0.06622845]
[1773249119330,0.0003316,70972.0,70959.0,0.00144]
[1773249120033,0.0003316,70972.0,70960.0,0.07046223]
[1773249120507,0.16729044,70977.0,70960.0,0.07046223]
[1773249120508,0.16819786,70989.0,70961.0,0.06766845]
[1773249120671,0.07044396,70985.0,70962.0,0.00144]
[1773249120823,0.07044396,70985.0,70963.0,0.00144]
[1773249121245,0.07044396,70985.0,70963.0,0.06766845]
[1773249121447,0.00022001,70980.0,70963.0,0.06622845]
[1773249121654,0.07066397,70980.0,70964.0,0.00144]
[1773249122126,0.07066397,70980.0,70965.0,0.07045726]
[1773249122748,0.00144,70979.0,70965.0,0.07045726]
[1773249122929,0.07044396,70976.0,70954.0,0.07046795]
[1773249123130,0.07055551,70976.0,70955.0,0.1386087]
[1773249123380,0.07055551,70976.0,70956.0,0.13863262]
[1773249123607,0.07055551,70976.0,70960.0,0.001]
[1773249124659,0.07044734,70975.0,70960.0,0.001]
[1773249124871,0.07044396,70974.0,70957.0,0.07046476]
[1773249125068,0.07044396,70972.0,70957.0,0.07046476]
[1773249125475,0.07044396,70972.0,70956.0,0.0704658]
[1773249125878,0.07044396,70972.0,70949.0,0.18134645]
[1773249126079,0.07044396,70972.0,70950.0,0.13868075]
[1773249126286,0.07144396,70972.0,70951.0,0.13868075]
[1773249126482,0.07144396,70972.0,70952.0,0.13868075]
[1773249126742,0.07144396,70972.0,70953.0,0.13868075]
[1773249126885,0.001,70972.0,70955.0,0.06622845]
[1773249127085,0.001,70972.0,70957.0,0.06622845]
[1773249127415,0.00011155,70976.0,70959.0,0.06622845]
[1773249127615,0.00011155,70976.0,70961.0,0.06622845]
[1773249128709,0.00011155,70976.0,70963.0,0.06622845]
[1773249128897,0.00011155,70976.0,70964.0,0.13668671]
[1773249129097,0.00033156,70976.0,70964.0,0.13668671]
[1773249129710,0.00177156,70976.0,70965.0,0.06622845]
[1773249130155,0.00033156,70976.0,70965.0,0.06622845]
[1773249130307,0.00144,70975.0,70965.0,0.06622845]
[1773249130711,0.00144,70975.0,70964.0,0.07045826]
[1773249130930,0.00144,70975.0,70962.0,0.07045826]
[1773249131112,0.00144,70975.0,70963.0,0.06622845]